fUST/lending_fUST_20250115
["ID","MTS","AMOUNT","RATE_DAILY","PERIOD"]
[349055068,1736955041213,-649.74,0.00021369,3]
[349055070,1736955041222,-9109.55,0.000214,2]
[349055072,1736955041232,-1898.77952683,0.00021417,2]
[349055074,1736955041242,-161.11974132,0.00021484,2]
[349055076,1736955041251,-2456.56,0.000215,2]
[349055078,1736955041261,-7087.47,0.00021506,3]
[349055080,1736955041270,-591.45,0.00021506,3]
[349055082,1736955041280,-708.09,0.00021506,3]
[349055085,1736955041290,-1287.03,0.00021506,3]
[349055087,1736955041299,-1050.48,0.00021506,3]
[349055088,1736955041309,-1811.3,0.00021506,3]
[349055091,1736955041319,-1354.01,0.00021506,3]
[349055092,1736955041329,-552.23,0.00021506,3]
[349055094,1736955041339,-9443.06,0.00021506,3]
[349055097,1736955041352,-649.74,0.00021506,3]
[349055098,1736955041361,-545.70162608,0.00021522,2]
[349055101,1736955041371,-1500.0,0.00021522,2]
[349055103,1736955041380,-1898.77952683,0.00021555,2]
[349055105,1736955041391,-500.51504874,0.00021573,2]
[349055106,1736955041400,-500.0,0.00021573,2]
[349055108,1736955041413,-1000.0,0.00021578,2]
[349055111,1736955041423,-1000.0,0.00021578,2]
[349055113,1736955041433,-1000.0,0.00021578,2]
[349055114,1736955041443,-15932.59895273,0.000216,2]
[349055116,1736955041453,-15932.59895272,0.000216,2]
[349055119,1736955041463,-15932.59895272,0.000216,2]
[349055120,1736955041473,-15932.59895272,0.000216,2]
[349055123,1736955041482,-7087.47,0.00021643,3]
[349055124,1736955041492,-591.45,0.00021643,3]
[349055126,1736955041501,-708.09,0.00021643,3]
[349055128,1736955041511,-1287.03,0.00021643,3]
[349055131,1736955041520,-1050.48,0.00021643,3]
[349055132,1736955041530,-1811.3,0.00021643,3]
[349055135,1736955041540,-1354.01,0.00021643,3]
[349055137,1736955041549,-552.23,0.00021643,3]
[349055139,1736955041559,-9443.06,0.00021643,3]
[349055141,1736955041568,-649.74,0.00021643,3]
[349055143,1736955041578,-1898.77952683,0.00021693,2]
[349055144,1736955041587,-151.0,0.000217,4]
[349055147,1736955041597,-7087.47,0.0002178,3]
[349055148,1736955041607,-591.45,0.0002178,3]
[349055150,1736955041616,-708.09,0.0002178,3]
[349055153,1736955041626,-1287.03,0.0002178,3]
[349055155,1736955041636,-1050.48,0.0002178,3]
[349055157,1736955041646,-1811.3,0.0002178,3]
[349055158,1736955041658,-1354.01,0.0002178,3]
[349055160,1736955041668,-552.23,0.0002178,3]
[349055163,1736955041677,-9443.06,0.0002178,3]
[349055164,1736955041687,-649.74,0.0002178,3]
[349055166,1736955041696,-353.4540553,0.00021781,2]
[349055168,1736955041707,-353.4540553,0.00021781,2]
[349055170,1736955041716,-353.4540553,0.00021781,2]
[349055172,1736955041725,-353.4540553,0.00021781,2]
[349055174,1736955041734,-353.4540553,0.00021781,2]
[349055176,1736955041744,-353.4540553,0.00021781,2]
[349055177,1736955041754,-151.0,0.000218,3]
[349055179,1736955041763,-2468.69456892,0.000218,2]
[349055185,1736955041846,-12042.62427312,0.000218,2]
[349055186,1736955041935,-65137.98301793,0.000218,2]
[349055187,1736955041946,-9677.42369375,0.00021804,2]
[349055188,1736955041955,-1898.77952683,0.00021831,2]
[349055189,1736955041965,-4999.999999,0.000219,2]
[349055190,1736955041975,-7087.47,0.00021917,3]
[349055191,1736955041985,-591.45,0.00021917,3]
[349055192,1736955041994,-708.09,0.00021917,3]
[349055193,1736955042004,-1287.03,0.00021917,3]
[349055194,1736955042013,-1050.48,0.00021917,3]
[349055195,1736955042023,-1811.3,0.00021917,3]
[349055196,1736955042032,-1354.01,0.00021917,3]
[349055197,1736955042042,-552.23,0.00021917,3]
[349055198,1736955042051,-9443.06,0.00021917,3]
[349055199,1736955042061,-649.74,0.00021917,3]
[349055200,1736955042071,-963.9611576,0.00021949,2]
[349055201,1736955042080,-1898.77952683,0.00021969,2]
[349055202,1736955042089,-4599.32717687,0.0002197,2]
[349055203,1736955042099,-155.021,0.00021991,2]
[349055204,1736955042108,-2070.0,0.00021991,2]
[349055205,1736955042118,-536.0,0.00021991,2]
[349055206,1736955042127,-2321.527,0.00021991,2]
[349055207,1736955042137,-395.0,0.00021991,2]
[349055208,1736955042146,-158.0,0.00022,2]
[349055209,1736955042164,-7087.47,0.00022054,3]
[349055210,1736955042174,-591.45,0.00022054,3]
[349055211,1736955042183,-708.09,0.00022054,3]
[349055212,1736955042192,-1287.03,0.00022054,3]
[349055213,1736955042201,-1050.48,0.00022054,3]
[349055214,1736955042211,-1811.3,0.00022054,3]
[349055215,1736955042220,-1354.01,0.00022054,3]
[349055216,1736955042229,-552.23,0.00022054,3]
[349055217,1736955042239,-9443.06,0.00022054,3]
[349055218,1736955042249,-649.74,0.00022054,3]
[349055219,1736955042258,-365.7892497,0.00022055,2]
[349055220,1736955042268,-153.0,0.00022082,2]
[349055221,1736955042281,-153.2995019,0.00022082,2]
[349055222,1736955042292,-342.3864402,0.00022082,2]
[349055223,1736955042302,-151.0,0.000221,10]
[349055224,1736955042313,-2508.99340747,0.000221,14]
[349055225,1736955042328,-2192.49659253,0.000221,14]
[349055226,1736955042341,-1898.77952683,0.00022107,2]
[349055227,1736955042352,-374.96545672,0.0002217,2]
[349055228,1736955042362,-520.35842392,0.00022191,3]
[349055229,1736955042376,-6567.11157608,0.00022191,3]
[349055230,1736955042387,-591.45,0.00022191,3]
[349055231,1736955042397,-708.09,0.00022191,3]
[349055232,1736955042411,-1287.03,0.00022191,3]
[349055233,1736955042420,-1050.48,0.00022191,3]
[349055234,1736955042430,-1811.3,0.00022191,3]
[349055236,1736955042441,-1354.01,0.00022191,3]
[349055238,1736955042451,-552.23,0.00022191,3]
[349055241,1736955042461,-9443.06,0.00022191,3]
[349055243,1736955042471,-649.74,0.00022191,3]
[349055245,1736955042481,-158.0,0.00022192,2]
[349055246,1736955042491,-1903.95,0.000222,2]
[349055247,1736955042501,-465.37443374,0.0002223,2]
[349055248,1736955042512,-1898.77952683,0.00022245,2]
[349055249,1736955042522,-161.11974132,0.00022285,2]
[349055250,1736955042532,-471.94094717,0.00022288,2]
[349055251,1736955042544,-2721.7617546,0.00022328,3]
[349055258,1736955042650,168.480352,0.00013973,2]
[349055287,1736955042899,2351.25410105,0.00025,120]
[349055290,1736955042974,-500.0,0.00019178,2]
[349055291,1736955042984,-500.0,0.00019178,2]
[349055292,1736955042995,-500.0,0.00019178,2]
[349055293,1736955043008,-500.0,0.00019178,2]
[349055294,1736955043018,-503.74193724,0.00019315,3]
[349055295,1736955043027,-500.0,0.00019315,3]
[349055296,1736955043037,-500.0,0.00019315,3]
[349055297,1736955043047,-500.0,0.00019315,3]
[349055298,1736955043056,-500.0,0.00019452,3]
[349055299,1736955043066,-500.0,0.00019589,3]
[349055300,1736955043075,-500.0,0.00019726,3]
[349055301,1736955043085,-500.0,0.00019726,3]
[349055302,1736955043094,-500.0,0.00019863,3]
[349055303,1736955043103,-500.0,0.00019863,3]
[349055304,1736955043113,-500.0,0.0002,3]
[349055305,1736955043123,-500.0,0.0002,3]
[349055306,1736955043132,-500.0,0.00020136,3]
[349055307,1736955043141,-500.0,0.00020136,3]
[349055308,1736955043150,-500.0,0.00020273,3]
[349055309,1736955043162,-500.0,0.00020273,3]
[349055310,1736955043173,-500.0,0.0002041,3]
[349055311,1736955043184,-500.0,0.00020547,3]
[349055312,1736955043194,-500.0,0.00020684,3]
[349055313,1736955043203,-500.0,0.00020821,3]
[349055314,1736955043214,-500.0,0.00020958,3]
[349055315,1736955043224,-500.0,0.00021095,3]
[349055316,1736955043234,-500.0,0.00021232,3]
[349055317,1736955043245,-500.0,0.00021369,3]
[349055318,1736955043254,-532.08,0.00021506,3]
[349055319,1736955043264,-4365.8569144,0.00022328,3]
[349055320,1736955043275,-591.5988,0.00022328,3]
[349055321,1736955043285,-708.11,0.00022328,3]
[349055322,1736955043295,-1287.09473901,0.00022328,3]
[349055323,1736955043304,-1050.57,0.00022328,3]
[349055324,1736955043314,-27054.74760934,0.00022328,3]
[349055329,1736955043524,-500.0,0.00019178,2]
[349055330,1736955043534,-379.61681868,0.00019178,2]
[349055331,1736955043544,-500.0,0.00019315,3]
[349055332,1736955043554,-500.0,0.00019452,3]
[349055333,1736955043564,-500.0,0.00019589,3]
[349055334,1736955043574,-500.0,0.00019726,3]
[349055335,1736955043583,-10447.74403132,0.00022328,3]
[349055336,1736955043595,-615.79799988,0.00022328,3]
[349055365,1736955046292,-500.0,0.00019178,2]
[349055367,1736955046301,-437.26561359,0.00019315,3]
[349055374,1736955085498,1999.999999,0.00015053,2]
[349055375,1736955089581,654.0,0.00025,120]
[349055376,1736955303191,641.19354148,0.00025,120]
[349055377,1736955303224,1250.89,0.00025,120]
[349055378,1736955307042,1031.98,0.0002359,120]
[349055379,1736955325413,2351.25410105,0.00025,120]
[349055380,1736955407187,150.92,0.00013699,2]
[349055381,1736955407520,150.92,0.00013699,2]
[349055382,1736955407869,150.92,0.00013699,2]
[349055383,1736955408323,150.92,0.00013699,2]
[349055384,1736955408673,150.95690017,0.00013699,2]
[349055385,1736955466230,2202.442,0.00025,120]
[349055386,1736955469727,654.0,0.00025,120]
[349055387,1736955607755,1031.98,0.0002359,120]
[349055388,1736955811325,160.0,0.00023343,120]
[349055389,1736955813719,230.15713156,0.00025,120]
[349055390,1736955824045,1000.0,0.00025,120]
[349055393,1736955990880,160.0,0.0002401,120]
[349055394,1736956051167,160.0,0.00023007,120]
[349055395,1736956096220,499.999999,0.00025,120]
[349055398,1736956110230,193.23612,0.0002411,120]
[349055403,1736956170759,160.0,0.00024658,120]
[349055406,1736956182640,2025.66099,0.00025,120]
[349055409,1736956230892,160.0,0.00024085,120]
[349055459,1736956232511,-369.62243612,0.00019077,2]
[349055461,1736956232522,-169.44364151,0.00019078,2]
[349055464,1736956232532,-369.6224361,0.00019112,2]
[349055465,1736956232542,-369.6224361,0.00019146,2]
[349055468,1736956232552,-812.00418302,0.00019166,5]
[349055469,1736956232562,-151.0,0.00019166,2]
[349055471,1736956232571,-200.95,0.00019168,2]
[349055473,1736956232580,-300.0,0.00019172,2]
[349055475,1736956232589,-500.0,0.00019173,2]
[349055477,1736956232600,-500.50518724,0.00019173,2]
[349055479,1736956232610,-501.98896243,0.00019173,2]
[349055481,1736956232620,-164542.0,0.00019173,2]
[349055483,1736956232629,-175.47919154,0.00019173,2]
[349055486,1736956232639,-500.0,0.00019173,2]
[349055488,1736956232648,-596.78259507,0.00019173,2]
[349055490,1736956232658,-500.0,0.00019174,2]
[349055491,1736956232667,-500.0,0.00019174,2]
[349055493,1736956232678,-500.0,0.00019174,2]
[349055495,1736956232687,-500.0,0.00019174,2]
[349055497,1736956232696,-500.0,0.00019174,2]
[349055499,1736956232707,-500.0,0.00019174,2]
[349055501,1736956232717,-500.0,0.00019174,2]
[349055503,1736956232731,-500.0,0.00019174,2]
[349055505,1736956232741,-500.0,0.00019174,2]
[349055507,1736956232750,-500.0,0.00019174,2]
[349055509,1736956232760,-500.0,0.00019174,2]
[349055512,1736956232772,-500.0,0.00019174,2]
[349055514,1736956232781,-500.0,0.00019174,2]
[349055516,1736956232791,-500.0,0.00019174,2]
[349055518,1736956232801,-500.0,0.00019174,2]
[349055520,1736956232811,-500.0,0.00019174,2]
[349055522,1736956232821,-500.0,0.00019174,2]
[349055524,1736956232831,-500.0,0.00019174,2]
[349055526,1736956232840,-500.0,0.00019174,2]
[349055528,1736956232850,-500.0,0.00019174,2]
[349055530,1736956232859,-500.0,0.00019174,2]
[349055532,1736956232869,-500.0,0.00019174,2]
[349055534,1736956232879,-500.0,0.00019174,2]
[349055536,1736956232888,-500.0,0.00019174,2]
[349055538,1736956232898,-500.0,0.00019174,2]
[349055540,1736956232908,-500.0,0.00019174,2]
[349055542,1736956232918,-500.0,0.00019174,2]
[349055544,1736956232929,-500.0,0.00019174,2]
[349055546,1736956232940,-500.0,0.00019174,2]
[349055547,1736956232949,-500.0,0.00019174,2]
[349055550,1736956232960,-500.0,0.00019174,2]
[349055551,1736956232969,-500.0,0.00019174,2]
[349055554,1736956232979,-500.0,0.00019174,2]
[349055556,1736956232990,-627.73959838,0.00019174,2]
[349055558,1736956232999,-627.73959838,0.00019174,2]
[349055560,1736956233009,-627.73959838,0.00019174,2]
[349055562,1736956233018,-627.73959838,0.00019174,2]
[349055564,1736956233029,-627.73959838,0.00019174,2]
[349055566,1736956233040,-627.73959838,0.00019174,2]
[349055568,1736956233051,-627.73959838,0.00019174,2]
[349055570,1736956233061,-627.73959838,0.00019174,2]
[349055572,1736956233071,-627.73959838,0.00019174,2]
[349055574,1736956233081,-627.73959838,0.00019174,2]
[349055576,1736956233091,-627.73959838,0.00019174,2]
[349055578,1736956233103,-627.73959838,0.00019174,2]
[349055580,1736956233114,-627.73959838,0.00019174,2]
[349055582,1736956233124,-627.73959838,0.00019174,2]
[349055584,1736956233135,-627.73959838,0.00019174,2]
[349055594,1736956233236,-627.73959838,0.00019174,2]
[349055596,1736956233247,-627.73959838,0.00019174,2]
[349055598,1736956233257,-627.73959838,0.00019174,2]
[349055600,1736956233267,-627.73959838,0.00019174,2]
[349055602,1736956233277,-627.73959838,0.00019174,2]
[349055604,1736956233288,-627.73959838,0.00019174,2]
[349055607,1736956233299,-627.73959838,0.00019174,2]
[349055609,1736956233309,-627.73959838,0.00019174,2]
[349055611,1736956233320,-627.73959838,0.00019174,2]
[349055613,1736956233330,-627.73959838,0.00019174,2]
[349055614,1736956233340,-627.73959838,0.00019174,2]
[349055617,1736956233350,-627.73959838,0.00019174,2]
[349055618,1736956233360,-627.73959838,0.00019174,2]
[349055620,1736956233369,-627.73959838,0.00019174,2]
[349055622,1736956233379,-627.73959838,0.00019174,2]
[349055624,1736956233389,-627.73959838,0.00019174,2]
[349055626,1736956233399,-627.73959838,0.00019174,2]
[349055628,1736956233408,-627.73959838,0.00019174,2]
[349055630,1736956233418,-627.73959838,0.00019174,2]
[349055632,1736956233430,-627.73959838,0.00019174,2]
[349055634,1736956233441,-627.73959838,0.00019174,2]
[349055636,1736956233450,-627.73959838,0.00019174,2]
[349055638,1736956233461,-627.73959838,0.00019174,2]
[349055640,1736956233471,-627.73959838,0.00019174,2]
[349055642,1736956233481,-610.16288961,0.00019174,2]
[349055644,1736956233491,-610.16288961,0.00019174,2]
[349055646,1736956233501,-610.16288961,0.00019174,2]
[349055648,1736956233511,-610.16288961,0.00019174,2]
[349055650,1736956233522,-610.16288961,0.00019174,2]
[349055652,1736956233531,-610.16288961,0.00019174,2]
[349055654,1736956233541,-610.16288961,0.00019174,2]
[349055656,1736956233551,-610.16288961,0.00019174,2]
[349055658,1736956233561,-610.16288961,0.00019174,2]
[349055660,1736956233571,-610.16288961,0.00019174,2]
[349055662,1736956233582,-610.16288961,0.00019174,2]
[349055664,1736956233592,-610.16288961,0.00019174,2]
[349055666,1736956233602,-610.16288961,0.00019174,2]
[349055668,1736956233612,-610.16288961,0.00019174,2]
[349055670,1736956233622,-610.16288961,0.00019174,2]
[349055672,1736956233632,-173.87,0.00019177,2]
[349055674,1736956233641,-295.21669662,0.00019177,2]
[349055676,1736956233652,-511.75704496,0.00019177,2]
[349055678,1736956233661,-361.4213687,0.00019178,2]
[349055680,1736956233671,-274.48909496,0.00019178,2]
[349055682,1736956233683,-500.0,0.00019178,2]
[349055684,1736956233694,-500.62521843,0.00019178,2]
[349055686,1736956233703,-500.0,0.00019178,2]
[349055688,1736956233714,-500.0,0.00019178,2]
[349055689,1736956233724,-500.0,0.00019178,2]
[349055691,1736956233739,-504.44337405,0.00019178,2]
[349055692,1736956233749,-319.35413968,0.00019178,2]
[349055693,1736956233759,-500.0,0.00019178,2]
[349055695,1736956233769,-500.0,0.00019178,2]
[349055696,1736956233781,-500.0,0.00019178,2]
[349055699,1736956233794,-500.0,0.00019178,2]
[349055700,1736956233804,-500.0,0.00019178,2]
[349055702,1736956233815,-500.0,0.00019178,2]
[349055704,1736956233825,-500.0,0.00019178,2]
[349055706,1736956233836,-500.0,0.00019178,2]
[349055708,1736956233846,-502.20857173,0.00019178,2]
[349055710,1736956233856,-503.25626782,0.00019178,2]
[349055712,1736956233866,-500.0,0.00019178,2]
[349055714,1736956233877,-500.0,0.00019178,2]
[349055717,1736956233887,-514.69536039,0.00019178,2]
[349055719,1736956233899,-512.76483763,0.00019178,2]
[349055720,1736956233912,-500.0,0.00019178,2]
[349055721,1736956233923,-500.0,0.00019178,2]
[349055722,1736956233938,-500.0,0.00019178,2]
[349055723,1736956233950,-406.07424747,0.00019178,2]
[349055724,1736956233961,-500.0,0.00019178,2]
[349055725,1736956233971,-500.0,0.00019178,2]
[349055726,1736956233982,-500.0,0.00019178,2]
[349055727,1736956233992,-501.33262852,0.00019178,2]
[349055728,1736956234002,-505.65160693,0.00019178,2]
[349055729,1736956234012,-501.45413238,0.00019178,2]
[349055730,1736956234021,-502.28836299,0.00019178,2]
[349055732,1736956234031,-500.0,0.00019178,2]
[349055733,1736956234042,-501.45836225,0.00019178,2]
[349055736,1736956234053,-501.7487746,0.00019178,2]
[349055738,1736956234063,-500.0,0.00019178,2]
[349055740,1736956234072,-500.0,0.00019178,2]
[349055742,1736956234082,-500.0,0.00019178,2]
[349055743,1736956234091,-500.0,0.00019178,2]
[349055745,1736956234102,-500.0,0.00019178,2]
[349055748,1736956234113,-500.88798177,0.00019178,2]
[349055749,1736956234123,-500.0,0.00019178,2]
[349055751,1736956234133,-548.68231974,0.00019178,2]
[349055754,1736956234143,-500.0,0.00019178,2]
[349055755,1736956234152,-500.0,0.00019178,2]
[349055757,1736956234162,-501.97476281,0.00019178,2]
[349055759,1736956234172,-500.0,0.00019178,2]
[349055761,1736956234184,-500.0,0.00019178,2]
[349055763,1736956234194,-500.0,0.00019178,2]
[349055765,1736956234204,-500.92222629,0.00019178,2]
[349055767,1736956234213,-501.37362013,0.00019178,2]
[349055769,1736956234224,-500.0,0.00019178,2]
[349055771,1736956234234,-513.16521462,0.00019178,2]
[349055773,1736956234243,-500.0,0.00019178,2]
[349055775,1736956234253,-515.44299286,0.00019178,2]
[349055777,1736956234263,-501.65638792,0.00019178,2]
[349055779,1736956234274,-500.0,0.00019178,2]
[349055781,1736956234283,-500.0,0.00019178,2]
[349055783,1736956234293,-500.0,0.00019178,2]
[349055785,1736956234302,-500.0,0.00019178,2]
[349055787,1736956234311,-500.0,0.00019178,2]
[349055789,1736956234321,-501.21582258,0.00019178,2]
[349055791,1736956234331,-501.50720612,0.00019178,2]
[349055793,1736956234341,-500.0,0.00019178,2]
[349055795,1736956234351,-500.0,0.00019178,2]
[349055797,1736956234361,-500.0,0.00019178,2]
[349055799,1736956234372,-434.47135998,0.00019178,2]
[349055801,1736956234382,-500.0,0.00019178,2]
[349055803,1736956234391,-500.0,0.00019178,2]
[349055805,1736956234402,-3000.0,0.00019178,30]
[349055807,1736956234411,-500.0,0.00019178,2]
[349055809,1736956234421,-501.47741162,0.00019178,2]
[349055811,1736956234432,-500.0,0.00019178,2]
[349055813,1736956234441,-500.0,0.00019178,2]
[349055815,1736956234451,-500.0,0.00019178,2]
[349055817,1736956234461,-1000.0,0.00019178,30]
[349055819,1736956234471,-500.0,0.00019178,2]
[349055821,1736956234481,-500.0,0.00019178,2]
[349055823,1736956234491,-500.0,0.00019178,2]
[349055825,1736956234500,-500.0,0.00019178,2]
[349055827,1736956234510,-500.0,0.00019178,2]
[349055829,1736956234519,-204.89588991,0.00019178,2]
[349055831,1736956234530,-500.0,0.00019178,2]
[349055833,1736956234539,-500.0,0.00019178,2]
[349055835,1736956234548,-500.0,0.00019178,2]
[349055837,1736956234558,-501.64897314,0.00019178,2]
[349055839,1736956234568,-500.0,0.00019178,2]
[349055841,1736956234577,-500.0,0.00019178,2]
[349055843,1736956234587,-502.26411064,0.00019178,2]
[349055845,1736956234596,-500.0,0.00019178,2]
[349055848,1736956234606,-500.0,0.00019178,2]
[349055849,1736956234616,-500.0,0.00019178,2]
[349055852,1736956234626,-500.0,0.00019178,2]
[349055854,1736956234636,-500.0,0.00019178,2]
[349055855,1736956234646,-500.0,0.00019178,2]
[349055857,1736956234656,-500.0,0.00019178,2]
[349055860,1736956234666,-500.0,0.00019178,2]
[349055861,1736956234677,-500.0,0.00019178,2]
[349055863,1736956234687,-500.0,0.00019178,2]
[349055866,1736956234697,-500.0,0.00019178,2]
[349055868,1736956234707,-500.0,0.00019178,2]
[349055869,1736956234717,-500.0,0.00019178,2]
[349055871,1736956234729,-500.0,0.00019178,2]
[349055873,1736956234739,-500.0,0.00019178,2]
[349055875,1736956234749,-500.0,0.00019178,2]
[349055884,1736956234824,-500.0,0.00019178,2]
[349055886,1736956234833,-500.0,0.00019178,2]
[349055888,1736956234843,-503.61939221,0.00019178,2]
[349055890,1736956234853,-500.0,0.00019178,2]
[349055892,1736956234862,-500.0,0.00019178,2]
[349055894,1736956234872,-500.85651321,0.00019178,2]
[349055896,1736956234881,-501.55085066,0.00019178,2]
[349055898,1736956234891,-500.0,0.00019178,2]
[349055900,1736956234900,-500.0,0.00019178,2]
[349055902,1736956234910,-502.17012562,0.00019178,2]
[349055904,1736956234919,-500.53292877,0.00019178,2]
[349055906,1736956234930,-501.48842462,0.00019178,2]
[349055908,1736956234940,-501.71547272,0.00019178,2]
[349055910,1736956234950,-507.00173518,0.00019178,2]
[349055912,1736956234959,-501.95214416,0.00019178,2]
[349055914,1736956234968,-500.0,0.00019178,2]
[349055916,1736956234978,-500.0,0.00019178,2]
[349055918,1736956234987,-500.0,0.00019178,2]
[349055920,1736956234996,-500.0,0.00019178,2]
[349055922,1736956235006,-501.83103888,0.00019178,2]
[349055924,1736956235016,-500.0,0.00019178,2]
[349055926,1736956235025,-500.0,0.00019178,7]
[349055928,1736956235035,-500.0,0.00019178,2]
[349055930,1736956235044,-500.0,0.00019178,2]
[349055932,1736956235054,-501.25977083,0.00019178,2]
[349055934,1736956235064,-694.13,0.00019178,2]
[349055936,1736956235073,-512.82884201,0.00019178,2]
[349055938,1736956235082,-500.0,0.00019178,2]
[349055940,1736956235092,-501.75018646,0.00019178,2]
[349055942,1736956235104,-505.64480328,0.00019178,2]
[349055944,1736956235114,-501.83442638,0.00019178,2]
[349055946,1736956235124,-500.0,0.00019178,2]
[349055948,1736956235133,-217.46931256,0.00019178,2]
[349055950,1736956235143,-501.57152807,0.00019178,2]
[349055952,1736956235152,-500.0,0.00019178,2]
[349055954,1736956235162,-500.0,0.00019178,2]
[349055956,1736956235171,-500.0,0.00019178,2]
[349055958,1736956235183,-503.60457346,0.00019178,2]
[349055960,1736956235192,-500.0,0.00019178,2]
[349055962,1736956235202,-500.0,0.00019178,2]
[349055964,1736956235211,-500.0,0.00019178,2]
[349055966,1736956235221,-500.0,0.00019178,2]
[349055968,1736956235229,-500.0,0.00019178,2]
[349055970,1736956235239,-500.0,0.00019178,2]
[349055972,1736956235249,-500.0,0.00019178,2]
[349055974,1736956235258,-500.0,0.00019178,2]
[349055976,1736956235267,-500.0,0.00019178,2]
[349055978,1736956235277,-500.0,0.00019178,2]
[349055980,1736956235286,-500.0,0.00019178,2]
[349055982,1736956235296,-500.0,0.00019178,2]
[349055985,1736956235305,-500.0,0.00019178,2]
[349055987,1736956235314,-500.0,0.00019178,2]
[349055989,1736956235324,-500.0,0.00019178,2]
[349055990,1736956235333,-500.0,0.00019178,2]
[349055992,1736956235343,-500.0,0.00019178,2]
[349055994,1736956235352,-500.0,0.00019178,2]
[349055996,1736956235361,-501.98838119,0.00019178,2]
[349055998,1736956235371,-248.54920282,0.00019178,2]
[349055999,1736956235380,-500.0,0.00019178,2]
[349056000,1736956235389,-501.47034895,0.00019178,2]
[349056001,1736956235399,-500.0,0.00019178,2]
[349056002,1736956235408,-501.55058833,0.00019178,2]
[349056003,1736956235417,-500.0,0.00019178,2]
[349056004,1736956235428,-500.0,0.00019178,2]
[349056005,1736956235437,-500.0,0.00019178,2]
[349056006,1736956235446,-500.55913886,0.00019178,2]
[349056007,1736956235455,-527.09,0.00019178,2]
[349056009,1736956235464,-501.31178527,0.00019178,2]
[349056011,1736956235473,-157.34,0.00019178,2]
[349056013,1736956235482,-497.80267683,0.00019178,2]
[349056015,1736956235491,-270.1042821,0.00019178,2]
[349056103,1736956240823,-231.59329891,0.00019178,2]
[349056104,1736956240832,-501.40514187,0.00019178,2]
[349056107,1736956240842,-500.0,0.00019178,2]
[349056109,1736956240851,-502.69743449,0.00019178,2]
[349056111,1736956240860,-500.0,0.00019178,2]
[349056113,1736956240870,-502.96865359,0.00019178,2]
[349056115,1736956240880,-502.75232034,0.00019178,2]
[349056116,1736956240890,-500.0,0.00019178,2]
[349056119,1736956240900,-501.22545797,0.00019178,2]
[349056120,1736956240910,-500.0,0.00019178,2]
[349056122,1736956240919,-500.0,0.00019178,2]
[349056124,1736956240928,-500.0,0.00019178,2]
[349056127,1736956240939,-500.0,0.00019178,2]
[349056128,1736956240949,-500.0,0.00019178,2]
[349056130,1736956240958,-500.0,0.00019178,2]
[349056133,1736956240967,-500.0,0.00019178,2]
[349056135,1736956240977,-505.43072475,0.00019178,2]
[349056136,1736956240986,-500.0,0.00019178,2]
[349056139,1736956240996,-500.0,0.00019178,2]
[349056141,1736956241005,-500.0,0.00019178,2]
[349056143,1736956241015,-500.92272801,0.00019178,2]
[349056145,1736956241024,-503.52347018,0.00019178,2]
[349056147,1736956241033,-500.0,0.00019178,2]
[349056149,1736956241043,-500.0,0.00019178,2]
[349056151,1736956241052,-500.0,0.00019178,2]
[349056153,1736956241061,-500.0,0.00019178,2]
[349056155,1736956241070,-500.0,0.00019178,2]
[349056156,1736956241079,-308.53507303,0.00019178,2]